bitfinex/quotes_BTCUSD_20230120
["timestamp","ask_amount","ask_price","bid_price","bid_amount"]
[1674186676528,0.042,21106.0,21105.0,1.49948757]
[1674186676785,0.4599101,21107.0,21105.0,0.1124]
[1674186677045,0.042,21106.0,21105.0,0.1134]
[1674186677304,0.042,21106.0,21105.0,0.586221]
[1674186677579,0.05,21106.0,21105.0,0.592221]
[1674186681677,0.46104337,21106.0,21105.0,0.479821]
[1674186682206,1.37486037,21106.0,21105.0,0.006]
[1674186682479,1.78636037,21106.0,21105.0,0.006]
[1674186686315,1.74436037,21106.0,21102.0,0.5475282]
[1674186686594,0.434697,21105.0,21102.0,0.5475282]
[1674186686837,0.295464,21104.0,21102.0,0.5475282]
[1674186687090,0.1124,21105.0,21102.0,0.5475282]
[1674186687673,0.320466,21104.0,21102.0,0.5475282]
[1674186687906,0.318385,21103.0,21102.0,0.5475282]
[1674186688147,0.3664713,21104.0,21102.0,0.5535282]
[1674186688644,0.321478,21103.0,21102.0,0.5535282]
[1674186688894,0.3664713,21104.0,21102.0,0.5535282]
[1674186689905,0.3584713,21104.0,21102.0,0.5475282]
[1674186690466,0.319528,21103.0,21102.0,0.473873]
[1674186690662,0.332503,21103.0,21102.0,0.479873]
[1674186690913,0.3664713,21104.0,21102.0,0.479873]
[1674186691424,0.3584713,21104.0,21102.0,0.473873]
[1674186691642,0.008,21103.0,21102.0,0.479873]
[1674186691893,0.331428,21103.0,21102.0,0.479873]
[1674186692148,0.008,21103.0,21102.0,0.479873]
[1674186692399,0.3584713,21104.0,21102.0,0.473873]
[1674186692642,0.3664713,21104.0,21102.0,0.479873]
[1674186692857,0.3584713,21104.0,21102.0,0.473873]
[1674186693609,0.008,21103.0,21102.0,0.479873]
[1674186693863,0.3584713,21104.0,21102.0,0.473873]
[1674186694118,0.3664713,21104.0,21102.0,0.5592914]
[1674186695631,0.36636142,21104.0,21102.0,0.5592914]
[1674186697164,0.36636142,21104.0,21102.0,0.67293202]
[1674186697935,0.36636142,21104.0,21102.0,0.5592914]
[1674186698208,0.36636142,21104.0,21102.0,0.67293202]
[1674186700167,0.36636142,21104.0,21102.0,0.5592914]
[1674186707787,0.36136142,21104.0,21102.0,0.5592914]
[1674186708051,0.36136142,21104.0,21102.0,0.479873]
[1674186708580,0.326239,21103.0,21102.0,0.479873]
[1674186708841,0.36136142,21104.0,21102.0,0.479873]
[1674186709115,0.36136142,21104.0,21102.0,0.006]
[1674186709116,0.73309266,21103.0,21102.0,0.006]
[1674186709647,0.73309266,21103.0,21101.0,0.66942862]
[1674186710158,0.008,21103.0,21102.0,0.006]
[1674186710159,0.008,21103.0,21101.0,0.50879184]
[1674186710452,0.008,21103.0,21102.0,0.1]
[1674186710938,0.33726856,21104.0,21102.0,0.1]
[1674186711455,0.33726856,21104.0,21102.0,0.09992816]
[1674186712427,0.009,21103.0,21102.0,0.09992816]
[1674186712659,0.33726856,21104.0,21102.0,0.09992816]
[1674186712886,0.34726856,21104.0,21102.0,0.09992816]
[1674186713186,0.33726856,21104.0,21102.0,0.09992816]
[1674186713459,0.009,21103.0,21102.0,0.09992816]
[1674186713690,0.33726856,21104.0,21102.0,0.09992816]
[1674186714174,0.34726856,21104.0,21102.0,0.09992816]
[1674186714443,0.33726856,21104.0,21102.0,0.09992816]
[1674186715214,0.009,21103.0,21102.0,0.09992816]
[1674186715475,0.33726856,21104.0,21102.0,0.09992816]
[1674186715741,0.34726856,21104.0,21102.0,0.09992816]
[1674186716022,0.33726856,21104.0,21102.0,0.09992816]
[1674186716294,0.009,21103.0,21102.0,0.09992816]
[1674186716555,0.33726856,21104.0,21102.0,0.09992816]
[1674186716819,0.34726856,21104.0,21102.0,0.09992816]
[1674186717070,0.33726856,21104.0,21102.0,0.09992816]
[1674186717373,0.009,21103.0,21102.0,0.09992816]
[1674186718118,0.33726856,21104.0,21102.0,0.09992816]
[1674186718377,0.34726856,21104.0,21102.0,0.09992816]
[1674186718633,0.81111856,21104.0,21102.0,0.09992816]
[1674186718892,0.009,21103.0,21102.0,0.09992816]
[1674186719174,0.81113256,21104.0,21102.0,0.09992816]
[1674186719427,0.36030457,21103.0,21102.0,0.09992816]
[1674186719693,0.68990957,21103.0,21102.0,0.09992816]
[1674186719950,0.36930457,21103.0,21102.0,0.09992816]
[1674186720159,0.36030457,21103.0,21102.0,0.09992816]
[1674186721698,0.36930457,21103.0,21102.0,0.09992816]
[1674186723256,0.68687757,21103.0,21102.0,0.09992816]
[1674186723777,0.36930457,21103.0,21102.0,0.09992816]
[1674186726121,0.36930457,21103.0,21102.0,1.16132509]
[1674186726122,0.009,21103.0,21102.0,1.16132509]
[1674186726424,0.009,21103.0,21102.0,1.49347809]
[1674186726921,0.009,21103.0,21102.0,1.37200147]
[1674186727181,0.009,21103.0,21102.0,1.48564209]
[1674186727961,0.40586324,21103.0,21102.0,1.16132509]
[1674186728213,0.40586324,21103.0,21102.0,0.09992816]
[1674186729227,0.45081656,21103.0,21102.0,0.09992816]
[1674186730220,0.45081656,21103.0,21101.0,0.22607638]
[1674186730516,0.45081656,21103.0,21101.0,0.1]
[1674186730778,0.326837,21102.0,21101.0,0.1]
[1674186731041,0.45081656,21103.0,21101.0,1.16143074]
[1674186731293,0.44181656,21103.0,21101.0,0.21364062]
[1674186731555,0.45081656,21103.0,21101.0,0.21364062]
[1674186731824,0.44181656,21103.0,21101.0,0.1]
[1674186732072,0.44181656,21103.0,21100.0,0.88592352]
[1674186732073,0.10776,21102.0,21100.0,0.88592352]
[1674186732353,0.10776,21102.0,21100.0,0.58755962]
[1674186732605,0.68775595,21101.0,21099.0,0.76357206]
[1674186732967,0.68775595,21101.0,21099.0,0.60887581]
[1674186733125,0.36503895,21101.0,21099.0,0.60887581]
[1674186734114,0.37403895,21101.0,21099.0,0.60887581]
[1674186735802,0.009,21101.0,21099.0,0.60887581]
[1674186737584,0.38350555,21101.0,21099.0,0.60887581]
[1674186738577,0.38350555,21101.0,21099.0,0.3867945]
[1674186739093,0.38350555,21101.0,21099.0,0.37102982]
[1674186739338,0.38350555,21101.0,21099.0,0.2573892]
[1674186740585,0.38350555,21101.0,21099.0,0.38536919]
[1674186741355,0.38350555,21101.0,21099.0,0.27172857]
[1674186744549,0.37450555,21101.0,21099.0,0.38536919]
[1674186744804,0.38350555,21101.0,21099.0,0.27172857]
[1674186746282,0.331626,21100.0,21099.0,0.01433937]
[1674186746560,0.82878948,21100.0,21098.0,0.00624943]
[1674186746831,0.32165,21099.0,21098.0,0.00624943]
[1674186747094,1.00272448,21100.0,21098.0,0.01879219]
[1674186747352,1.01172448,21100.0,21098.0,0.01879219]
[1674186747610,1.00272448,21100.0,21098.0,0.00624943]
[1674186747862,0.52878948,21100.0,21098.0,0.00624943]
[1674186748626,0.325964,21099.0,21098.0,0.00624943]
[1674186748887,0.52878948,21100.0,21098.0,0.00624943]
[1674186749137,0.53878948,21100.0,21098.0,0.00624943]
[1674186749403,0.338698,21099.0,21098.0,0.00624943]
[1674186749661,0.009,21099.0,21098.0,0.00624943]
[1674186749937,0.52878948,21100.0,21098.0,0.00624943]
[1674186750208,0.53878948,21100.0,21098.0,0.00624943]
[1674186750471,0.312651,21099.0,21098.0,0.00624943]
[1674186750729,0.009,21099.0,21098.0,0.00624943]
[1674186751509,0.52878948,21100.0,21098.0,0.00624943]
[1674186751768,0.53878948,21100.0,21098.0,0.00624943]
[1674186752115,0.52878948,21100.0,21098.0,0.00624943]
[1674186752287,0.10776,21099.0,21098.0,0.00624943]
[1674186752551,0.75801394,21099.0,21098.0,0.00624943]
[1674186752820,0.43628494,21099.0,21098.0,0.00624943]
[1674186754868,0.44528494,21099.0,21098.0,0.00624943]
[1674186758639,0.75969394,21099.0,21098.0,0.00624943]
[1674186758906,0.78393194,21099.0,21098.0,0.00624943]
[1674186759730,0.68517194,21099.0,21098.0,0.00624943]
[1674186759988,0.009,21099.0,21098.0,0.02050169]
[1674186760448,0.009,21099.0,21098.0,0.00624943]
[1674186760718,0.10776,21099.0,21098.0,0.00624943]
[1674186761744,0.009,21099.0,21098.0,0.02030152]
[1674186762341,0.00893653,21099.0,21098.0,0.59535952]
[1674186762646,0.00893653,21099.0,21098.0,3.13187449]
[1674186763948,0.00893653,21099.0,21098.0,3.35873077]
[1674186764456,0.00893653,21099.0,21098.0,3.18826984]
[1674186764707,0.00893653,21099.0,21098.0,3.35856347]
[1674186765530,0.00893653,21099.0,21098.0,3.04417193]
[1674186765782,0.00893653,21099.0,21098.0,2.57580783]
[1674186766033,0.00893653,21099.0,21098.0,2.35180783]
[1674186766279,0.10769653,21099.0,21098.0,0.96825752]
[1674186766791,0.00893653,21099.0,21098.0,0.96825752]
[1674186767624,0.00893653,21099.0,21098.0,0.48022743]
[1674186767625,0.20877653,21099.0,21098.0,0.48022743]
[1674186767824,0.20877653,21099.0,21098.0,0.00624943]
[1674186768327,0.6289886,21099.0,21098.0,0.00624943]
[1674186768827,0.9436046,21099.0,21098.0,0.00624943]
[1674186773440,0.9436046,21099.0,21098.0,0.00615771]
[1674186777060,0.00893653,21099.0,21098.0,0.00615771]
[1674186777320,0.00893653,21099.0,21098.0,0.01934712]
[1674186777321,0.0087258,21099.0,21098.0,0.01934712]
[1674186777795,0.0087258,21099.0,21098.0,0.00615771]
[1674186778053,0.3430148,21099.0,21098.0,0.00615771]
[1674186778301,0.0087258,21099.0,21098.0,0.00615771]
[1674186780056,0.0087258,21099.0,21098.0,1.18342987]
[1674186780319,0.0087258,21099.0,21098.0,1.3537235]
[1674186781079,0.0087258,21099.0,21098.0,1.18342987]
[1674186782437,0.0087258,21099.0,21098.0,1.65164257]
[1674186782689,0.0087258,21099.0,21098.0,1.39874887]
[1674186782963,0.0087258,21099.0,21098.0,0.02088878]
[1674186783480,0.0087258,21099.0,21098.0,0.96884478]
[1674186783739,0.0087258,21099.0,21098.0,2.03028339]
[1674186786530,0.0087258,21099.0,21098.0,2.20057702]
[1674186787063,0.0087258,21099.0,21098.0,2.03028339]
[1674186787839,0.0087258,21099.0,21098.0,2.52100002]
[1674186788119,0.0087258,21099.0,21098.0,2.35070639]
[1674186788885,0.0087258,21099.0,21098.0,2.03028339]
[1674186789651,0.0087258,21099.0,21098.0,2.34587139]
[1674186790456,0.0087258,21099.0,21098.0,2.64415816]
[1674186790957,0.0087258,21099.0,21098.0,3.0980033]
[1674186790959,0.0087258,21099.0,21098.0,3.54958174]
[1674186791232,0.0087258,21099.0,21098.0,3.2789719]
[1674186791486,0.0087258,21099.0,21098.0,3.56273243]
[1674186793085,0.0087258,21099.0,21098.0,3.44934969]
[1674186793358,0.0087258,21099.0,21098.0,3.2789719]
[1674186794405,0.0087258,21099.0,21098.0,3.56523506]
[1674186795416,0.0087258,21099.0,21098.0,3.28147453]
[1674186796187,0.0087258,21099.0,21098.0,3.56523506]
[1674186796724,0.0087258,21099.0,21098.0,3.45182101]
[1674186797302,0.0087258,21099.0,21098.0,3.22496473]
[1674186797535,0.0087258,21099.0,21098.0,2.86989224]
[1674186797790,0.0087258,21099.0,21098.0,2.75633567]
[1674186798017,0.0087258,21099.0,21098.0,1.4928538]
[1674186799610,0.1962,21102.0,21099.0,0.1]
[1674186800091,0.35308293,21101.0,21099.0,1.02457635]
[1674186800092,0.35308293,21101.0,21099.0,0.947882]
[1674186801126,0.35308293,21101.0,21099.0,0.948882]
[1674186801384,0.35308293,21101.0,21099.0,0.947882]
[1674186801643,0.35308293,21101.0,21099.0,0.948882]
[1674186801644,0.39308293,21101.0,21099.0,0.948882]
[1674186801912,0.315142,21100.0,21099.0,0.948882]
[1674186802172,0.39308293,21101.0,21099.0,0.948882]
[1674186802673,0.312296,21100.0,21099.0,0.948882]
[1674186802944,0.312296,21100.0,21099.0,0.947882]
[1674186803219,0.005,21100.0,21099.0,0.955882]
[1674186803477,0.35308293,21101.0,21099.0,0.947882]
[1674186804056,0.35308293,21101.0,21099.0,0.955882]
[1674186804317,0.35308293,21101.0,21099.0,0.947882]
[1674186804318,0.31918,21100.0,21099.0,0.947882]
[1674186804581,0.310913,21100.0,21099.0,0.947882]
[1674186804844,0.10376,21100.0,21099.0,0.473948]
[1674186805156,1.20812396,21100.0,21099.0,0.001]
[1674186805410,1.50760825,21100.0,21099.0,0.001]
[1674186805671,1.43192396,21100.0,21099.0,0.001]
[1674186805930,1.90085696,21100.0,21098.0,0.30444448]
[1674186806196,1.45834096,21100.0,21099.0,0.00791694]
[1674186806503,1.58860796,21100.0,21099.0,0.00791694]
[1674186806812,1.88360796,21100.0,21098.0,0.30444448]
[1674186807076,0.431898,21099.0,21098.0,0.31244448]
[1674186807331,0.431898,21099.0,21098.0,0.30444448]
[1674186808067,0.79666189,21099.0,21098.0,0.30444448]
[1674186808863,0.80466189,21099.0,21098.0,0.31244448]
[1674186809884,0.48516389,21099.0,21098.0,0.31244448]
[1674186810145,0.79457889,21099.0,21098.0,0.31244448]
[1674186810658,0.48516389,21099.0,21098.0,0.31244448]
[1674186810922,0.82086889,21099.0,21098.0,0.31244448]
[1674186812363,0.70846889,21099.0,21098.0,0.31244448]
[1674186812624,0.69695989,21099.0,21098.0,0.31244448]
[1674186813158,1.17091589,21099.0,21098.0,0.31244448]
[1674186813407,0.99695989,21099.0,21098.0,0.31244448]
[1674186813923,1.07920086,21099.0,21098.0,0.31244448]
[1674186814212,1.60631434,21099.0,21098.0,0.31244448]
[1674186815604,1.692508,21099.0,21098.0,0.31244448]
[1674186815868,1.91756947,21099.0,21098.0,0.31244448]
[1674186816123,2.29489307,21099.0,21098.0,0.30444448]
[1674186816393,2.33489307,21099.0,21098.0,0.30544448]
[1674186816661,2.1814316,21099.0,21098.0,0.30444448]
[1674186816961,2.2654316,21099.0,21098.0,0.30544448]
[1674186818814,2.5789153,21099.0,21098.0,0.30544448]
[1674186820175,2.1935917,21099.0,21098.0,0.30544448]
[1674186820432,2.52662494,21099.0,21098.0,0.30544448]
[1674186822611,1.880108,21099.0,21098.0,0.30544448]
[1674186822836,2.24271603,21099.0,21098.0,0.30544448]
[1674186824754,1.880108,21099.0,21098.0,0.30544448]
[1674186825308,2.31789186,21099.0,21098.0,0.30544448]
[1674186828626,2.31789186,21099.0,21098.0,0.00715771]
[1674186828895,2.31789186,21099.0,21098.0,0.00707373]
[1674186832296,2.63662158,21099.0,21098.0,0.00707373]
[1674186833641,2.52502158,21099.0,21098.0,0.00707373]
[1674186837015,2.63848305,21099.0,21098.0,0.00707373]
[1674186837741,2.52502158,21099.0,21098.0,0.00707373]
[1674186838278,2.20629186,21099.0,21098.0,0.00707373]
[1674186840069,2.20618886,21099.0,21098.0,0.00707373]
[1674186840582,2.20508886,21099.0,21098.0,0.00707373]
[1674186842898,2.31855033,21099.0,21098.0,0.00707373]
[1674186843117,2.20508886,21099.0,21098.0,0.00707373]
[1674186844437,2.31855033,21099.0,21098.0,0.00707373]
[1674186844692,2.20508886,21099.0,21098.0,0.00597373]
[1674186844948,2.31855033,21099.0,21098.0,0.00597373]
[1674186847045,2.4574104,21099.0,21098.0,0.00597373]
[1674186847285,2.2869195,21099.0,21098.0,0.00597373]
[1674186848286,2.4574104,21099.0,21098.0,0.00597373]
[1674186848805,2.2869195,21099.0,21098.0,0.00597373]
[1674186849062,1.9639265,21099.0,21098.0,0.00597373]
[1674186850109,2.2937145,21099.0,21098.0,0.00597373]
[1674186850634,1.9639265,21099.0,21098.0,0.00597373]
[1674186850897,1.6639265,21099.0,21098.0,0.00597373]
[1674186851160,0.557956,21099.0,21098.0,0.31619735]
[1674186851409,0.084,21099.0,21098.0,0.44310538]
[1674186851986,0.084,21099.0,21098.0,0.02079638]
[1674186852177,0.87053753,21100.0,21098.0,0.01979638]
[1674186852451,0.077,21099.0,21098.0,0.13299638]
[1674186852703,0.39658453,21100.0,21098.0,0.13199638]
[1674186852963,0.076,21099.0,21098.0,0.13399638]
[1674186853271,0.39658453,21100.0,21098.0,0.13199638]
[1674186853475,0.39658453,21100.0,21099.0,0.331386]
[1674186853728,0.47258453,21100.0,21098.0,0.13299638]
[1674186853988,0.47258453,21100.0,21098.0,0.11817373]
[1674186854511,0.58738947,21101.0,21098.0,0.11717373]
[1674186854512,0.4092395,21099.0,21098.0,0.11717373]
[1674186854770,0.4092395,21099.0,21098.0,0.00697373]
[1674186854771,0.7532395,21099.0,21098.0,0.00697373]
[1674186855062,0.4092395,21099.0,21098.0,0.00497373]
[1674186855312,0.4092395,21099.0,21098.0,0.00697373]
[1674186855568,0.4092395,21099.0,21098.0,0.00497373]
[1674186855913,0.4532395,21099.0,21098.0,0.00697373]
[1674186857234,0.044,21099.0,21098.0,0.01909806]
[1674186857706,0.044,21099.0,21098.0,0.00697373]
[1674186860527,0.41656071,21099.0,21098.0,0.00697373]
[1674186862271,1.04101671,21099.0,21098.0,0.00697373]
[1674186862499,1.04228671,21099.0,21098.0,0.00697373]
[1674186862723,0.71656071,21099.0,21098.0,0.00697373]
[1674186862949,0.41656071,21099.0,21098.0,0.00697373]
[1674186863978,0.41656071,21099.0,21098.0,0.00197373]
[1674186865065,0.044,21099.0,21098.0,0.00197373]
[1674186866853,0.044,21099.0,21098.0,0.10305373]
[1674186867122,0.044,21099.0,21098.0,0.11911968]
[1674186867423,0.044,21099.0,21098.0,0.01803968]
[1674186867657,0.044,21099.0,21098.0,0.00197373]
[1674186872726,0.044,21099.0,21098.0,0.30921746]
[1674186872985,0.044,21099.0,21098.0,0.67540349]
[1674186874752,0.044,21099.0,21098.0,1.14938149]
[1674186875512,0.044,21099.0,21098.0,1.04830149]
[1674186875750,0.044,21099.0,21098.0,0.71159449]
[1674186876777,0.044,21099.0,21098.0,1.02622849]
[1674186877290,0.044,21099.0,21098.0,0.71159449]
[1674186879081,0.044,21099.0,21098.0,0.69975173]
[1674186882403,0.044,21099.0,21098.0,0.58735173]
[1674186884622,0.38964341,21099.0,21098.0,0.58735173]
[1674186886860,0.38964341,21099.0,21098.0,0.66635173]
[1674186888608,0.044,21099.0,21098.0,0.67984246]
[1674186888906,0.0439308,21099.0,21098.0,1.00992546]
[1674186889173,0.0439308,21099.0,21098.0,0.67984246]
[1674186890191,0.0439308,21099.0,21098.0,2.0654483]
[1674186893556,0.0439308,21099.0,21098.0,1.7413133]
[1674186893782,0.0439308,21099.0,21098.0,1.62775673]
[1674186894536,0.0439308,21099.0,21098.0,0.67984246]
[1674186895320,0.0439308,21099.0,21098.0,1.6277589]
[1674186895814,0.0439308,21099.0,21098.0,0.67984246]
[1674186897051,0.0439308,21099.0,21098.0,0.20586446]
[1674186897567,0.0439308,21099.0,21098.0,0.19237373]
[1674186899077,0.0439308,21099.0,21098.0,0.66635173]
[1674186899310,0.08731533,21099.0,21098.0,1.14032973]
[1674186902580,0.08731533,21099.0,21098.0,1.02892973]
[1674186905624,0.52751892,21099.0,21098.0,0.08097373]
[1674186907211,0.82751892,21099.0,21098.0,0.08097373]
[1674186907464,1.15601092,21099.0,21098.0,0.08097373]
[1674186908286,1.26947239,21099.0,21098.0,0.08097373]
[1674186908553,1.15601092,21099.0,21098.0,0.08097373]
[1674186909345,0.85601092,21099.0,21098.0,0.08097373]
[1674186911209,1.15601092,21099.0,21098.0,0.08097373]
[1674186914614,1.15601092,21099.0,21098.0,0.00197373]
[1674186925612,0.85601092,21099.0,21098.0,0.00197373]
[1674186925870,0.85601092,21099.0,21098.0,0.09383373]
[1674186925871,0.08731533,21099.0,21098.0,0.09383373]
[1674186926174,0.08731533,21099.0,21098.0,0.42791373]
[1674186926448,0.08731533,21099.0,21098.0,0.00197373]
[1674186929850,0.52421824,21099.0,21098.0,0.00197373]
[1674186930396,0.84819124,21099.0,21098.0,0.00197373]
[1674186930658,1.14819124,21099.0,21098.0,0.00197373]
[1674186935828,0.84819124,21099.0,21098.0,0.00197373]
[1674186941050,1.14819124,21099.0,21098.0,0.00197373]
[1674186941293,0.84819124,21099.0,21098.0,0.00197373]
[1674186941784,1.14819124,21099.0,21098.0,0.00197373]
[1674186944792,1.26165271,21099.0,21098.0,0.00197373]
[1674186947318,2.20956471,21099.0,21098.0,0.00197373]
[1674186947579,2.38005561,21099.0,21098.0,0.00197373]
[1674186947837,2.38005561,21099.0,21098.0,0.00187359]
[1674186948864,2.27418199,21099.0,21098.0,0.00187359]
[1674186949127,2.44481771,21099.0,21098.0,0.00187359]
[1674186949728,2.27432681,21099.0,21098.0,0.00187359]
[1674186950180,2.44481771,21099.0,21098.0,0.00187359]
[1674186950684,2.33121142,21099.0,21098.0,0.00187359]
[1674186951234,2.44483156,21099.0,21098.0,0.00187359]
[1674186951499,1.94331137,21099.0,21098.0,0.00187359]
[1674186951750,1.99892097,21099.0,21098.0,0.00187359]
[1674186952008,2.92056106,21099.0,21098.0,0.00187359]
[1674186952355,2.36161456,21099.0,21098.0,0.00187359]
[1674186952785,0.325002,21098.0,21097.0,0.07796095]
[1674186953046,1.21259951,21098.0,21097.0,0.07796095]
[1674186953308,1.43739951,21098.0,21097.0,0.07796095]
[1674186953830,1.43727346,21098.0,21097.0,0.07796095]
[1674186954081,1.43727346,21098.0,21097.0,0.00575949]
[1674186954347,1.52527346,21098.0,21097.0,0.00575949]
[1674186955116,1.95901004,21098.0,21097.0,0.00575949]
[1674186956122,2.43298804,21098.0,21097.0,0.00575949]
[1674186956632,2.6034173,21098.0,21097.0,0.00575949]
[1674186956883,2.43298804,21098.0,21097.0,0.00575949]
[1674186958672,2.6034173,21098.0,21097.0,0.00575949]
[1674186958925,2.43298804,21098.0,21097.0,0.00575949]
[1674186959435,2.6675173,21098.0,21097.0,0.00575949]
[1674186959668,2.23378072,21098.0,21097.0,0.00575949]
[1674186959892,2.06335146,21098.0,21097.0,0.00575949]
[1674186960111,2.46456612,21098.0,21097.0,0.00575949]
[1674186960370,2.61129209,21098.0,21097.0,0.00575949]
[1674186960637,3.22599828,21098.0,21097.0,0.00575949]
[1674186961153,3.13799828,21098.0,21097.0,0.00575949]
[1674186961417,3.45607107,21098.0,21097.0,0.00575949]
[1674186961676,3.47737406,21098.0,21097.0,0.00575949]
[1674186961932,3.34129828,21098.0,21097.0,0.00575949]
[1674186962193,3.56836936,21098.0,21097.0,0.00575949]
[1674186962446,3.19085799,21098.0,21097.0,0.00575949]
[1674186963235,3.19069456,21098.0,21097.0,0.00575949]
[1674186964012,3.19069456,21098.0,21097.0,0.00564255]
[1674186964274,2.96378691,21098.0,21097.0,0.00564255]
[1674186965212,3.1905976,21098.0,21097.0,0.00564255]
[1674186965578,2.90646041,21098.0,21097.0,0.00564255]
[1674186965844,2.59615077,21098.0,21097.0,0.00564255]
[1674186966102,3.2033546,21098.0,21097.0,0.00564255]
[1674186966325,2.9764637,21098.0,21097.0,0.00564255]
[1674186966860,3.20329191,21098.0,21097.0,0.00564255]
[1674186967115,2.9764637,21098.0,21097.0,0.00564255]
[1674186967377,3.25272883,21098.0,21097.0,0.00564255]
[1674186968980,3.02594558,21098.0,21097.0,0.00564255]
[1674186969252,3.25269444,21098.0,21097.0,0.00564255]
[1674186969514,3.64568065,21098.0,21097.0,0.00564255]
[1674186970032,3.33528576,21098.0,21097.0,0.00564255]
[1674186970322,2.51125447,21098.0,21097.0,0.00564255]
[1674186970599,2.9294914,21098.0,21097.0,0.00564255]
[1674186971129,2.64535421,21098.0,21097.0,0.00564255]
[1674186971400,2.34118248,21098.0,21097.0,0.00564255]
[1674186971697,2.51122977,21098.0,21097.0,0.00564255]
[1674186972236,2.34118248,21098.0,21097.0,0.00564255]
[1674186972510,2.22878248,21098.0,21097.0,0.00564255]
[1674186973053,2.39884234,21098.0,21097.0,0.00564255]
[1674186973359,2.34459939,21098.0,21097.0,0.00564255]
[1674186973628,2.64897418,21098.0,21097.0,0.00564255]
[1674186974108,2.22878248,21098.0,21097.0,0.00564255]
[1674186974402,2.81731688,21098.0,21097.0,0.00564255]
[1674186976321,2.13778248,21098.0,21097.0,0.00564255]
[1674186977086,2.53316659,21098.0,21097.0,0.00564255]
[1674186977346,2.22878248,21098.0,21097.0,0.00564255]
[1674186977605,2.81730711,21098.0,21097.0,0.00564255]
[1674186977876,2.91362489,21098.0,21097.0,0.00564255]
[1674186978144,3.69972489,21098.0,21097.0,0.00564255]
[1674186978453,3.4155877,21098.0,21097.0,0.00564255]
[1674186978723,0.1,21097.0,21096.0,0.00624887]
[1674186978987,2.91739443,21097.0,21096.0,0.00624887]
[1674186979241,3.14407999,21097.0,21096.0,0.00624887]
[1674186980018,3.23507999,21097.0,21096.0,0.00624887]
[1674186980248,2.91201335,21097.0,21096.0,0.00624887]
[1674186981356,3.07117522,21097.0,21096.0,0.00624887]
[1674186981625,2.91200953,21097.0,21096.0,0.00624887]
[1674186982735,2.68532779,21097.0,21096.0,0.00624887]
[1674186983532,2.72500908,21097.0,21096.0,0.00624887]
[1674186983805,2.98723903,21097.0,21096.0,0.00624887]
[1674186984058,3.46984122,21097.0,21096.0,0.00624887]
[1674186987881,3.81037862,21097.0,21096.0,0.00624887]
[1674186989000,3.05577458,21097.0,21096.0,0.00624887]
[1674186989241,2.88454463,21097.0,21096.0,0.00624887]
[1674186989538,2.79354463,21097.0,21096.0,0.00624887]
[1674186989769,2.88454463,21097.0,21096.0,0.00624887]
[1674186990588,2.78454463,21097.0,21096.0,0.00624887]
[1674186990855,3.06787145,21097.0,21096.0,0.00624887]
[1674186991117,2.95547145,21097.0,21096.0,0.00624887]
[1674186991371,2.95552057,21097.0,21096.0,0.00624887]
[1674186993915,2.47291838,21097.0,21096.0,0.00624887]
[1674186994175,2.6996808,21097.0,21096.0,0.00624887]
[1674186995260,2.47291838,21097.0,21096.0,0.00624887]
[1674186996076,2.18954244,21097.0,21096.0,0.00624887]
[1674186999479,2.53007984,21097.0,21096.0,0.00624887]
[1674186999724,2.53007984,21097.0,21095.0,0.00548418]
[1674187000014,1.15921309,21096.0,21095.0,0.00548418]
[1674187000268,2.4871821,21096.0,21095.0,0.00548418]
[1674187000789,2.10725909,21096.0,21095.0,0.00548418]
[1674187001046,2.40725909,21096.0,21095.0,0.00548418]
[1674187001528,2.18028458,21096.0,21095.0,0.00548418]
[1674187001786,2.15077958,21096.0,21095.0,0.00548418]
[1674187002301,2.24177958,21096.0,21095.0,0.00548418]
[1674187002557,1.95806144,21096.0,21095.0,0.00548418]
[1674187003322,2.36007356,21096.0,21095.0,0.00548418]
[1674187007542,2.40852045,21096.0,21095.0,0.00548418]
[1674187012627,2.52092045,21096.0,21095.0,0.00548418]
[1674187012876,2.86145785,21096.0,21095.0,0.00548418]
[1674187013369,2.52092045,21096.0,21095.0,0.00548418]
[1674187015164,2.86145785,21096.0,21095.0,0.00548418]
[1674187015408,2.52092045,21096.0,21095.0,0.00548418]
[1674187017168,2.11890833,21096.0,21095.0,0.00548418]
[1674187019712,2.47943631,21096.0,21095.0,0.00548418]
[1674187019970,2.11890833,21096.0,21095.0,0.00548418]
[1674187020216,2.45944573,21096.0,21095.0,0.00548418]
[1674187022561,2.57184573,21096.0,21095.0,0.00548418]
[1674187022855,3.03847428,21096.0,21095.0,0.00548418]
[1674187023633,3.03847428,21096.0,21095.0,0.00541308]
[1674187023634,2.57184573,21096.0,21095.0,0.00541308]
[1674187025001,2.23130833,21096.0,21095.0,0.00541308]
[1674187026254,2.57184573,21096.0,21095.0,0.00541308]
[1674187027302,2.23130833,21096.0,21095.0,0.00541308]
[1674187027792,2.57184573,21096.0,21095.0,0.00541308]
[1674187028015,2.23130833,21096.0,21095.0,0.00541308]
[1674187028274,2.37803635,21096.0,21095.0,0.00541308]
[1674187028497,2.71857375,21096.0,21095.0,0.00541308]
[1674187030070,2.37803635,21096.0,21095.0,0.00541308]
[1674187031568,2.23120911,21096.0,21095.0,0.00541308]
[1674187035234,2.23120911,21096.0,21095.0,0.00502806]
[1674187036522,2.64322328,21096.0,21095.0,0.00502806]
[1674187037317,2.31495857,21096.0,21095.0,0.19934903]
[1674187037567,1.66989705,21096.0,21095.0,0.00502806]
[1674187037832,1.61310488,21096.0,21095.0,0.00502806]
[1674187038083,1.80607088,21096.0,21095.0,0.00502806]
[1674187038383,1.88907088,21096.0,21095.0,0.00602806]
[1674187038610,1.66189705,21096.0,21095.0,0.00602806]
[1674187039139,2.07549128,21096.0,21095.0,0.00602806]
[1674187039402,1.82210129,21096.0,21095.0,0.00502806]
[1674187039673,1.90510129,21096.0,21095.0,0.00602806]
[1674187041767,1.80556268,21096.0,21095.0,0.00602806]
[1674187042028,2.53898774,21096.0,21095.0,0.00602806]
[1674187042304,2.94648662,21096.0,21095.0,0.00602806]
[1674187042564,2.31181391,21096.0,21095.0,0.00602806]
[1674187043289,2.31181391,21096.0,21094.0,0.00822626]
[1674187043290,2.96571037,21096.0,21094.0,0.00822626]
[1674187043293,0.1,21095.0,21094.0,0.00822626]
[1674187043636,1.781732,21095.0,21094.0,0.00822626]
[1674187044331,2.19050147,21095.0,21094.0,0.00822626]
[1674187044583,2.27450147,21095.0,21094.0,0.00922626]
[1674187045835,1.865732,21095.0,21094.0,0.00922626]
[1674187046083,1.781732,21095.0,21094.0,0.00822626]
[1674187046309,2.2122694,21095.0,21094.0,0.00822626]
[1674187046552,2.51847833,21095.0,21094.0,0.00822626]
[1674187046801,2.08794093,21095.0,21094.0,0.00822626]
[1674187047047,2.42548127,21095.0,21094.0,0.00822626]
[1674187047560,2.87751867,21095.0,21094.0,0.00822626]
[1674187047835,3.71928085,21095.0,21094.0,0.00822626]
[1674187049810,3.39621421,21095.0,21094.0,0.00822626]